[Event "Early-Titled-Tuesday-Blitz-July-09-2024"]
[Site "Chess.com"]
[Date "2024.07.09"]
[Round "8"]
[White "Vaporwaffle94"]
[Black "RedFirePanda"]
[Result "1-0"]
[WhiteElo "2278"]
[BlackElo "2444"]
[TimeControl "180+1"]
[EndTime "9:29:41 PDT"]
[Termination "Vaporwaffle94 won by checkmate"]

1. c4 {[%clk 0:03:00.9]} 1... Nf6 {[%clk 0:02:58.7]} 2. a3 {[%clk 0:03:01.2]}
2... e6 {[%clk 0:02:56.9]} 3. Nc3 {[%clk 0:03:00.3]} 3... d5 {[%clk 0:02:56.7]}
4. cxd5 {[%clk 0:02:59.6]} 4... exd5 {[%clk 0:02:57.6]} 5. e3 {[%clk 0:03:00]}
5... c6 {[%clk 0:02:58]} 6. Qc2 {[%clk 0:03:00.4]} 6... Bg4 {[%clk 0:02:57.3]}
7. d4 {[%clk 0:02:58.8]} 7... Bd6 {[%clk 0:02:54.7]} 8. Bd3 {[%clk 0:02:59.2]}
8... Bh5 {[%clk 0:02:53.6]} 9. f4 {[%clk 0:02:58.7]} 9... Ng4 {[%clk 0:02:45.9]}
10. Nf3 {[%clk 0:02:56.9]} 10... Nf6 {[%clk 0:02:39.3]} 11. O-O {[%clk
0:02:54.4]} 11... O-O {[%clk 0:02:37.9]} 12. Ne5 {[%clk 0:02:54.4]} 12... Bg6
{[%clk 0:02:28.5]} 13. Bd2 {[%clk 0:02:51.5]} 13... Bxd3 {[%clk 0:02:27.9]} 14.
Qxd3 {[%clk 0:02:52.4]} 14... Nbd7 {[%clk 0:02:26.5]} 15. b4 {[%clk 0:02:51.7]}
15... Ne8 {[%clk 0:02:14.8]} 16. b5 {[%clk 0:02:48.2]} 16... Rc8 {[%clk
0:02:07.8]} 17. bxc6 {[%clk 0:02:47.8]} 17... bxc6 {[%clk 0:02:08.7]} 18. Rab1
{[%clk 0:02:47.1]} 18... f6 {[%clk 0:02:06.9]} 19. Nxd7 {[%clk 0:02:44.6]} 19...
Qxd7 {[%clk 0:02:07.8]} 20. Na4 {[%clk 0:02:44.7]} 20... Nc7 {[%clk 0:02:05.6]}
21. Bb4 {[%clk 0:02:41.9]} 21... Bxb4 {[%clk 0:02:03.6]} 22. axb4 {[%clk
0:02:42.8]} 22... Nb5 {[%clk 0:02:02.2]} 23. Nc5 {[%clk 0:02:42]} 23... Qe7
{[%clk 0:02:02.6]} 24. Ra1 {[%clk 0:02:41.7]} 24... Rfe8 {[%clk 0:02:01.1]} 25.
Rf3 {[%clk 0:02:41.5]} 25... Nd6 {[%clk 0:01:57.7]} 26. Rh3 {[%clk 0:02:36.9]}
26... h6 {[%clk 0:01:54.9]} 27. Qg6 {[%clk 0:02:32.8]} 27... Kh8 {[%clk
0:01:43.2]} 28. g4 {[%clk 0:02:21.8]} 28... Rc7 {[%clk 0:01:19.2]} 29. f5 {[%clk
0:02:20.5]} 29... Ne4 {[%clk 0:01:05]} 30. Ne6 {[%clk 0:02:18.9]} 30... Rb7
{[%clk 0:00:59.1]} 31. Nxg7 {[%clk 0:02:06.5]} 31... Qxg7 {[%clk 0:00:53.7]} 32.
Rxh6+ {[%clk 0:02:04.3]} 32... Qxh6 {[%clk 0:00:53.7]} 33. Qxh6+ {[%clk
0:02:02.5]} 33... Kg8 {[%clk 0:00:53]} 34. Qg6+ {[%clk 0:02:02.7]} 34... Kf8
{[%clk 0:00:53.4]} 35. g5 {[%clk 0:02:02.4]} 35... Rg7 {[%clk 0:00:48.5]} 36.
Qh6 {[%clk 0:02:00.7]} 36... Nxg5 {[%clk 0:00:39.4]} 37. Qxf6+ {[%clk
0:01:56.5]} 37... Kg8 {[%clk 0:00:39.2]} 38. Kf1 {[%clk 0:01:49.9]} 38... Rxe3
{[%clk 0:00:36.6]} 39. Re1 {[%clk 0:01:47.3]} 39... Rf3+ {[%clk 0:00:30.9]} 40.
Ke2 {[%clk 0:01:45.9]} 40... Rf4 {[%clk 0:00:27.5]} 41. Rg1 {[%clk 0:01:43.8]}
41... Re4+ {[%clk 0:00:17.6]} 42. Kd1 {[%clk 0:01:43.2]} 42... Ne6 {[%clk
0:00:04.7]} 43. Rxg7+ {[%clk 0:01:34.4]} 43... Nxg7 {[%clk 0:00:05.6]} 44. Qxc6
{[%clk 0:01:33.1]} 44... Rxd4+ {[%clk 0:00:05.4]} 45. Ke2 {[%clk 0:01:32]} 45...
Nxf5 {[%clk 0:00:05.6]} 46. Qc8+ {[%clk 0:01:29.7]} 46... Kg7 {[%clk 0:00:06.1]}
47. Qxf5 {[%clk 0:01:30.2]} 47... Re4+ {[%clk 0:00:05.6]} 48. Kd3 {[%clk
0:01:29.8]} 48... Rxb4 {[%clk 0:00:05.9]} 49. Qxd5 {[%clk 0:01:30.3]} 49... Rb6
{[%clk 0:00:05.1]} 50. Qd7+ {[%clk 0:01:29.2]} 50... Kh6 {[%clk 0:00:04.7]} 51.
Qxa7 {[%clk 0:01:30.1]} 51... Rd6+ {[%clk 0:00:04.7]} 52. Ke3 {[%clk 0:01:29.9]}
52... Re6+ {[%clk 0:00:04.3]} 53. Kf3 {[%clk 0:01:30.3]} 53... Rf6+ {[%clk
0:00:04.9]} 54. Kg3 {[%clk 0:01:30.5]} 54... Rg6+ {[%clk 0:00:05.5]} 55. Kh4
{[%clk 0:01:30.5]} 55... Rg7 {[%clk 0:00:05.7]} 56. Qe3+ {[%clk 0:01:29.1]}
56... Kh7 {[%clk 0:00:05.5]} 57. Kh5 {[%clk 0:01:29.5]} 57... Kh8 {[%clk
0:00:04.5]} 58. h4 {[%clk 0:01:26.3]} 58... Rh7+ {[%clk 0:00:04.7]} 59. Kg4
{[%clk 0:01:26.4]} 59... Rg7+ {[%clk 0:00:04.6]} 60. Kf3 {[%clk 0:01:26.6]}
60... Rf7+ {[%clk 0:00:05]} 61. Ke2 {[%clk 0:01:26.2]} 61... Rg7 {[%clk
0:00:02.7]} 62. h5 {[%clk 0:01:26.6]} 62... Rg2+ {[%clk 0:00:02.8]} 63. Kf3
{[%clk 0:01:26.4]} 63... Rg7 {[%clk 0:00:02.1]} 64. h6 {[%clk 0:01:24.2]} 64...
Rf7+ {[%clk 0:00:02.5]} 65. Kg4 {[%clk 0:01:23.7]} 65... Rf8 {[%clk 0:00:02.1]}
66. Kg5 {[%clk 0:01:22.6]} 66... Rg8+ {[%clk 0:00:02.1]} 67. Kh5 {[%clk
0:01:22.9]} 67... Rf8 {[%clk 0:00:01.4]} 68. Qe6 {[%clk 0:01:20.6]} 68... Rf6
{[%clk 0:00:01.3]} 69. Qxf6+ {[%clk 0:01:20.7]} 69... Kh7 {[%clk 0:00:01.5]} 70.
Qg7# {[%clk 0:01:21.6]} 1-0

[Event "Early-Titled-Tuesday-Blitz-July-09-2024"]
[Site "Chess.com"]
[Date "2024.07.09"]
[Round "8"]
[White "MatthewG-p4p"]
[Black "Potosino1970"]
[Result "1-0"]
[WhiteElo "2917"]
[BlackElo "2712"]
[TimeControl "180+1"]
[EndTime "9:29:43 PDT"]
[Termination "MatthewG-p4p won by resignation"]

1. e4 {[%clk 0:02:56.8]} 1... d6 {[%clk 0:02:59.9]} 2. d4 {[%clk 0:02:50.8]}
2... Nf6 {[%clk 0:02:59.9]} 3. Nc3 {[%clk 0:02:51.5]} 3... Nbd7 {[%clk
0:02:59.9]} 4. Nf3 {[%clk 0:02:36.7]} 4... e5 {[%clk 0:02:59.1]} 5. Bc4 {[%clk
0:02:37.3]} 5... Be7 {[%clk 0:02:58.6]} 6. O-O {[%clk 0:02:37.9]} 6... O-O
{[%clk 0:02:58]} 7. h3 {[%clk 0:02:38.6]} 7... c6 {[%clk 0:02:57.8]} 8. a4
{[%clk 0:02:38.9]} 8... a5 {[%clk 0:02:57.2]} 9. Re1 {[%clk 0:02:38.5]} 9...
exd4 {[%clk 0:02:56.7]} 10. Nxd4 {[%clk 0:02:39.4]} 10... Nc5 {[%clk 0:02:54.2]}
11. Ba2 {[%clk 0:02:34]} 11... Be6 {[%clk 0:02:46.8]} 12. Nxe6 {[%clk
0:02:31.2]} 12... fxe6 {[%clk 0:02:47.7]} 13. e5 {[%clk 0:02:19]} 13... dxe5
{[%clk 0:02:47.2]} 14. Qxd8 {[%clk 0:02:15.4]} 14... Raxd8 {[%clk 0:02:46.8]}
15. Rxe5 {[%clk 0:02:14.6]} 15... Nd5 {[%clk 0:02:43.7]} 16. Ne4 {[%clk
0:01:52.1]} 16... Nxe4 {[%clk 0:02:18.2]} 17. Rxe4 {[%clk 0:01:52.1]} 17... Bc5
{[%clk 0:02:18.4]} 18. Re2 {[%clk 0:01:45.2]} 18... Rf5 {[%clk 0:02:15.8]} 19.
Bd2 {[%clk 0:01:42.1]} 19... Rdf8 {[%clk 0:02:04.7]} 20. Be1 {[%clk 0:01:30.7]}
20... h5 {[%clk 0:01:58.8]} 21. Rd1 {[%clk 0:01:29.1]} 21... Kh7 {[%clk
0:01:57.1]} 22. Bc4 {[%clk 0:01:23.9]} 22... Nf4 {[%clk 0:01:42]} 23. Re4 {[%clk
0:01:23.4]} 23... e5 {[%clk 0:01:41.6]} 24. Rd7 {[%clk 0:01:18.4]} 24... Rg5
{[%clk 0:01:41.4]} 25. Kf1 {[%clk 0:00:38]} 25... Nxg2 {[%clk 0:01:37.5]} 26. h4
{[%clk 0:00:38.3]} 26... Rg6 {[%clk 0:00:51.7]} 27. Bd3 {[%clk 0:00:38.3]} 27...
Nxe1 {[%clk 0:00:50.4]} 28. Kxe1 {[%clk 0:00:20.6]} 28... Kh6 {[%clk 0:00:43.1]}
29. Rxe5 {[%clk 0:00:16.5]} 29... Rg1+ {[%clk 0:00:43.1]} 30. Kd2 {[%clk
0:00:17.2]} 30... Rxf2+ {[%clk 0:00:43]} 31. Kc3 {[%clk 0:00:17.1]} 31... Bb4+
{[%clk 0:00:40.9]} 32. Kb3 {[%clk 0:00:17.2]} 32... g6 {[%clk 0:00:41.3]} 33.
Re8 {[%clk 0:00:14.1]} 33... Rf8 {[%clk 0:00:38.8]} 34. Re6 {[%clk 0:00:13.2]}
34... Rg3 {[%clk 0:00:34.5]} 35. Rxb7 {[%clk 0:00:12.8]} 35... c5 {[%clk
0:00:33.7]} 36. Rd7 {[%clk 0:00:12.2]} 36... Rf4 {[%clk 0:00:33.6]} 37. Ka2
{[%clk 0:00:06.5]} 37... c4 {[%clk 0:00:33.2]} 38. Be4 {[%clk 0:00:07.2]} 38...
Re3 {[%clk 0:00:32]} 39. Rd4 {[%clk 0:00:07.4]} 39... c3 {[%clk 0:00:29.4]} 40.
Rxg6+ {[%clk 0:00:07.5]} 40... Kh7 {[%clk 0:00:27.9]} 41. Rd7+ {[%clk
0:00:07.5]} 41... Kh8 {[%clk 0:00:27]} 42. Rh6+ {[%clk 0:00:06.3]} 42... Kg8
{[%clk 0:00:26.2]} 43. Bd5+ {[%clk 0:00:07]} 1-0

[Event "Early-Titled-Tuesday-Blitz-July-09-2024"]
[Site "Chess.com"]
[Date "2024.07.09"]
[Round "8"]
[White "Ninocanina"]
[Black "chessmachine14"]
[Result "0-1"]
[WhiteElo "1907"]
[BlackElo "2230"]
[TimeControl "180+1"]
[EndTime "9:29:44 PDT"]
[Termination "chessmachine14 won by checkmate"]

1. d4 {[%clk 0:03:00.9]} 1... Nf6 {[%clk 0:02:57.8]} 2. c4 {[%clk 0:03:00.3]}
2... e6 {[%clk 0:02:57.4]} 3. Nc3 {[%clk 0:02:59.8]} 3... Bb4 {[%clk 0:02:56]}
4. e3 {[%clk 0:02:59.4]} 4... c5 {[%clk 0:02:53.6]} 5. Bd3 {[%clk 0:02:49.2]}
5... d5 {[%clk 0:02:52.4]} 6. Ne2 {[%clk 0:02:47.5]} 6... cxd4 {[%clk
0:02:49.4]} 7. exd4 {[%clk 0:02:42.3]} 7... dxc4 {[%clk 0:02:49.8]} 8. Bxc4
{[%clk 0:02:40.7]} 8... O-O {[%clk 0:02:50.1]} 9. O-O {[%clk 0:02:40.4]} 9... b6
{[%clk 0:02:48.6]} 10. a3 {[%clk 0:02:36.4]} 10... Bxc3 {[%clk 0:02:47.9]} 11.
bxc3 {[%clk 0:02:36]} 11... Ba6 {[%clk 0:02:46.4]} 12. Bxa6 {[%clk 0:02:31.3]}
12... Nxa6 {[%clk 0:02:46.7]} 13. Qd3 {[%clk 0:02:31.2]} 13... Nb8 {[%clk
0:02:41.8]} 14. Bg5 {[%clk 0:02:30.7]} 14... h6 {[%clk 0:02:39.9]} 15. Bh4
{[%clk 0:02:30.2]} 15... Nbd7 {[%clk 0:02:38.8]} 16. c4 {[%clk 0:02:24.8]} 16...
Rc8 {[%clk 0:02:38.1]} 17. Rac1 {[%clk 0:02:24.2]} 17... Qe7 {[%clk 0:02:33.7]}
18. a4 {[%clk 0:02:15.1]} 18... Rfd8 {[%clk 0:02:32.6]} 19. a5 {[%clk
0:01:53.5]} 19... Ne5 {[%clk 0:02:24.1]} 20. Qb3 {[%clk 0:01:46.1]} 20... Ned7
{[%clk 0:02:17.4]} 21. axb6 {[%clk 0:01:45.8]} 21... axb6 {[%clk 0:02:16.4]} 22.
Rfd1 {[%clk 0:01:40.3]} 22... e5 {[%clk 0:02:15.3]} 23. d5 {[%clk 0:01:38.1]}
23... Qd6 {[%clk 0:02:10.7]} 24. Nc3 {[%clk 0:01:37.2]} 24... Nc5 {[%clk
0:02:07.6]} 25. Qb1 {[%clk 0:01:31.7]} 25... Re8 {[%clk 0:01:37.7]} 26. Nb5
{[%clk 0:01:31.3]} 26... Qd7 {[%clk 0:01:22.2]} 27. Bxf6 {[%clk 0:01:30.2]}
27... gxf6 {[%clk 0:01:22.5]} 28. Rc3 {[%clk 0:01:17.7]} 28... e4 {[%clk
0:01:18.2]} 29. Qc1 {[%clk 0:01:11.8]} 29... Kh7 {[%clk 0:01:17.8]} 30. Rh3
{[%clk 0:01:10.9]} 30... e3 {[%clk 0:00:51.7]} 31. Rxe3 {[%clk 0:00:43]} 31...
Rxe3 {[%clk 0:00:51.1]} 32. Qxe3 {[%clk 0:00:42.9]} 32... Rg8 {[%clk 0:00:51]}
33. Qf3 {[%clk 0:00:29.9]} 33... f5 {[%clk 0:00:42.4]} 34. Nd4 {[%clk
0:00:28.8]} 34... Kg6 {[%clk 0:00:25.3]} 35. Nc6 {[%clk 0:00:25.3]} 35... Kh7
{[%clk 0:00:23.9]} 36. Nd4 {[%clk 0:00:22.4]} 36... Kg6 {[%clk 0:00:23.8]} 37.
Nc6 {[%clk 0:00:19.3]} 37... Qd6 {[%clk 0:00:23.7]} 38. Re1 {[%clk 0:00:16.6]}
38... Ne4 {[%clk 0:00:21.9]} 39. Ne5+ {[%clk 0:00:14.7]} 39... Qxe5 {[%clk
0:00:21.5]} 40. Qh3 {[%clk 0:00:11.4]} 40... Kh7 {[%clk 0:00:21]} 41. Qh5 {[%clk
0:00:10.9]} 41... Rg6 {[%clk 0:00:20.9]} 42. f3 {[%clk 0:00:10.4]} 42... Qb2
{[%clk 0:00:20.3]} 43. Qh3 {[%clk 0:00:08.8]} 43... Qf2+ {[%clk 0:00:19.7]} 44.
Kh1 {[%clk 0:00:07.4]} 44... Qxe1# {[%clk 0:00:20.6]} 0-1

[Event "Early-Titled-Tuesday-Blitz-July-09-2024"]
[Site "Chess.com"]
[Date "2024.07.09"]
[Round "8"]
[White "Dreamer_01"]
[Black "chessbaerchen"]
[Result "0-1"]
[WhiteElo "2454"]
[BlackElo "2651"]
[TimeControl "180+1"]
[EndTime "9:29:46 PDT"]
[Termination "chessbaerchen won on time"]

1. c4 {[%clk 0:03:00.9]} 1... c5 {[%clk 0:02:59.3]} 2. Nf3 {[%clk 0:02:59.8]}
2... Nf6 {[%clk 0:02:57.5]} 3. g3 {[%clk 0:02:59.4]} 3... Nc6 {[%clk 0:02:54.8]}
4. Bg2 {[%clk 0:02:59.2]} 4... d5 {[%clk 0:02:55.4]} 5. cxd5 {[%clk 0:02:57.1]}
5... Nxd5 {[%clk 0:02:56.3]} 6. Nc3 {[%clk 0:02:56.2]} 6... Nc7 {[%clk
0:02:55.8]} 7. O-O {[%clk 0:02:55]} 7... e5 {[%clk 0:02:56.3]} 8. d3 {[%clk
0:02:53.2]} 8... Be7 {[%clk 0:02:55.2]} 9. b3 {[%clk 0:02:31.4]} 9... O-O {[%clk
0:02:54.9]} 10. Bb2 {[%clk 0:02:31.7]} 10... Be6 {[%clk 0:02:48.7]} 11. Rc1
{[%clk 0:02:31.5]} 11... f6 {[%clk 0:02:42.2]} 12. Ne4 {[%clk 0:02:26.1]} 12...
b6 {[%clk 0:02:33.7]} 13. a3 {[%clk 0:02:17.7]} 13... Bd5 {[%clk 0:02:30.3]} 14.
Nc3 {[%clk 0:02:09]} 14... Be6 {[%clk 0:02:22.5]} 15. Nd2 {[%clk 0:01:55.3]}
15... Qd7 {[%clk 0:02:17.5]} 16. b4 {[%clk 0:01:45.7]} 16... Rac8 {[%clk
0:01:58.7]} 17. bxc5 {[%clk 0:01:34.9]} 17... bxc5 {[%clk 0:01:57.9]} 18. Nce4
{[%clk 0:01:28.5]} 18... Na6 {[%clk 0:01:48.4]} 19. Nc4 {[%clk 0:01:23.5]} 19...
Rb8 {[%clk 0:01:44.2]} 20. Ba1 {[%clk 0:01:16]} 20... Nd4 {[%clk 0:01:34.3]} 21.
e3 {[%clk 0:01:02.2]} 21... Nb3 {[%clk 0:01:26]} 22. Rc3 {[%clk 0:00:55.1]}
22... Rfd8 {[%clk 0:01:13.7]} 23. Rxb3 {[%clk 0:00:52]} 23... Bxc4 {[%clk
0:01:09.4]} 24. Rxb8 {[%clk 0:00:48.5]} 24... Nxb8 {[%clk 0:01:10.3]} 25. Qc1
{[%clk 0:00:34.1]} 25... Bxd3 {[%clk 0:01:06.7]} 26. Rd1 {[%clk 0:00:34]} 26...
c4 {[%clk 0:01:02.4]} 27. Nc3 {[%clk 0:00:23.5]} 27... Kh8 {[%clk 0:00:59.7]}
28. Nd5 {[%clk 0:00:21.5]} 28... Bc5 {[%clk 0:00:56.5]} 29. Qc3 {[%clk 0:00:18]}
29... Qd6 {[%clk 0:00:45.7]} 30. h4 {[%clk 0:00:15.5]} 30... Nd7 {[%clk
0:00:42.6]} 31. h5 {[%clk 0:00:14.9]} 31... Nb6 {[%clk 0:00:41.7]} 32. Nb4
{[%clk 0:00:07.6]} 32... Na4 {[%clk 0:00:40.2]} 33. Qd2 {[%clk 0:00:06]} 33...
Bxb4 {[%clk 0:00:39.5]} 34. axb4 {[%clk 0:00:06.1]} 34... h6 {[%clk 0:00:32.5]}
35. Qa2 {[%clk 0:00:05.9]} 35... Qxb4 {[%clk 0:00:32.1]} 36. Bf1 {[%clk
0:00:05.6]} 36... Nc5 {[%clk 0:00:28.7]} 37. Qxa7 {[%clk 0:00:05.1]} 37... Nb3
{[%clk 0:00:26.9]} 38. Bb2 {[%clk 0:00:02.2]} 38... Nd2 {[%clk 0:00:22.9]} 39.
Ba3 {[%clk 0:00:02.1]} 39... Qc3 {[%clk 0:00:19.8]} 40. Bxd3 {[%clk 0:00:02]}
40... Qxd3 {[%clk 0:00:18.9]} 41. Be7 {[%clk 0:00:02.2]} 41... Nf3+ {[%clk
0:00:19.1]} 42. Kg2 {[%clk 0:00:02]} 42... Qxd1 {[%clk 0:00:19.8]} 43. Qb6
{[%clk 0:00:01]} 43... Ne1+ {[%clk 0:00:20.2]} 0-1

[Event "Early-Titled-Tuesday-Blitz-July-09-2024"]
[Site "Chess.com"]
[Date "2024.07.09"]
[Round "8"]
[White "Radislav_Atanasov"]
[Black "DucksParadise"]
[Result "0-1"]
[WhiteElo "2419"]
[BlackElo "2613"]
[TimeControl "180+1"]
[EndTime "9:29:47 PDT"]
[Termination "DucksParadise won on time"]

1. e4 {[%clk 0:03:00]} 1... c5 {[%clk 0:02:57.6]} 2. c3 {[%clk 0:02:59.6]} 2...
d5 {[%clk 0:02:57.1]} 3. exd5 {[%clk 0:02:59.5]} 3... Nf6 {[%clk 0:02:57.8]} 4.
d4 {[%clk 0:03:00.4]} 4... cxd4 {[%clk 0:02:53]} 5. Nf3 {[%clk 0:03:01.3]} 5...
Nxd5 {[%clk 0:02:49.2]} 6. cxd4 {[%clk 0:03:01.2]} 6... g6 {[%clk 0:02:48.1]} 7.
a3 {[%clk 0:03:01.3]} 7... Bg7 {[%clk 0:02:48.5]} 8. Be2 {[%clk 0:03:01]} 8...
O-O {[%clk 0:02:48.9]} 9. O-O {[%clk 0:03:01.6]} 9... Nc6 {[%clk 0:02:49.1]} 10.
Re1 {[%clk 0:03:00.2]} 10... Bg4 {[%clk 0:02:44.6]} 11. Nc3 {[%clk 0:03:00.2]}
11... e6 {[%clk 0:02:36.9]} 12. Be3 {[%clk 0:02:52.9]} 12... Rc8 {[%clk
0:02:23.1]} 13. h3 {[%clk 0:02:49.1]} 13... Bxf3 {[%clk 0:02:22.7]} 14. Bxf3
{[%clk 0:02:47.6]} 14... Nxe3 {[%clk 0:02:22]} 15. fxe3 {[%clk 0:02:33.3]} 15...
Qe7 {[%clk 0:02:06.8]} 16. d5 {[%clk 0:02:24.9]} 16... Bxc3 {[%clk 0:01:58.3]}
17. bxc3 {[%clk 0:02:23.7]} 17... exd5 {[%clk 0:01:57.7]} 18. Bxd5 {[%clk
0:02:22.8]} 18... Ne5 {[%clk 0:01:54.9]} 19. Qb3 {[%clk 0:02:12]} 19... b6
{[%clk 0:01:53.3]} 20. c4 {[%clk 0:02:12.1]} 20... Qc5 {[%clk 0:01:48.6]} 21.
Kh1 {[%clk 0:02:06.5]} 21... Nxc4 {[%clk 0:01:45]} 22. e4 {[%clk 0:01:53.8]}
22... Ne5 {[%clk 0:01:37.7]} 23. Rf1 {[%clk 0:01:47.9]} 23... Qc2 {[%clk
0:01:35.1]} 24. Qg3 {[%clk 0:01:41.4]} 24... Qc3 {[%clk 0:01:22.4]} 25. Qf4
{[%clk 0:01:14.1]} 25... Nd3 {[%clk 0:00:29.4]} 26. Qf3 {[%clk 0:01:08.6]} 26...
Ne5 {[%clk 0:00:29.3]} 27. Qf4 {[%clk 0:01:07.4]} 27... Qc7 {[%clk 0:00:24.3]}
28. Rac1 {[%clk 0:00:59.7]} 28... Qe7 {[%clk 0:00:23.3]} 29. Rcd1 {[%clk
0:00:39.3]} 29... Kg7 {[%clk 0:00:21.4]} 30. a4 {[%clk 0:00:25.8]} 30... f6
{[%clk 0:00:20.4]} 31. h4 {[%clk 0:00:20.2]} 31... h6 {[%clk 0:00:19.5]} 32. h5
{[%clk 0:00:15.9]} 32... g5 {[%clk 0:00:19.8]} 33. Qf5 {[%clk 0:00:14.1]} 33...
Rc3 {[%clk 0:00:17.4]} 34. Rc1 {[%clk 0:00:07.3]} 34... Qc7 {[%clk 0:00:07.1]}
35. Rxc3 {[%clk 0:00:02.4]} 35... Qxc3 {[%clk 0:00:08]} 36. Qe6 {[%clk
0:00:02.9]} 36... Qc7 {[%clk 0:00:07.1]} 0-1

[Event "Early-Titled-Tuesday-Blitz-July-09-2024"]
[Site "Chess.com"]
[Date "2024.07.09"]
[Round "8"]
[White "Shield12"]
[Black "RandomNoob04"]
[Result "1-0"]
[WhiteElo "2977"]
[BlackElo "2768"]
[TimeControl "180+1"]
[EndTime "9:29:49 PDT"]
[Termination "Shield12 won by resignation"]

1. b3 {[%clk 0:03:00.9]} 1... Nf6 {[%clk 0:02:58.2]} 2. Bb2 {[%clk 0:03:01.7]}
2... g6 {[%clk 0:02:58.8]} 3. g3 {[%clk 0:03:02.4]} 3... Bg7 {[%clk 0:02:59.4]}
4. Bg2 {[%clk 0:03:03.2]} 4... O-O {[%clk 0:03:00.1]} 5. Nf3 {[%clk 0:03:03.6]}
5... d5 {[%clk 0:03:00.5]} 6. c4 {[%clk 0:03:02.6]} 6... c5 {[%clk 0:02:46.1]}
7. cxd5 {[%clk 0:03:01.8]} 7... Nxd5 {[%clk 0:02:47]} 8. Bxg7 {[%clk 0:03:00.8]}
8... Kxg7 {[%clk 0:02:47.9]} 9. O-O {[%clk 0:03:00.9]} 9... Nc6 {[%clk
0:02:48.6]} 10. d4 {[%clk 0:03:01.2]} 10... cxd4 {[%clk 0:02:37.8]} 11. Nxd4
{[%clk 0:03:02.1]} 11... Nxd4 {[%clk 0:02:38.5]} 12. Qxd4+ {[%clk 0:03:03]}
12... Nf6 {[%clk 0:02:39.4]} 13. Qe5 {[%clk 0:03:03.3]} 13... Qb6 {[%clk
0:02:31.3]} 14. Nc3 {[%clk 0:03:00.7]} 14... Bd7 {[%clk 0:02:24.8]} 15. Qxe7
{[%clk 0:02:55.7]} 15... Rfe8 {[%clk 0:02:21.5]} 16. Qa3 {[%clk 0:02:55.3]}
16... Rac8 {[%clk 0:02:20.9]} 17. Rac1 {[%clk 0:02:54.1]} 17... Bc6 {[%clk
0:02:15.4]} 18. Bxc6 {[%clk 0:02:40]} 18... Rxc6 {[%clk 0:02:16.3]} 19. Na4
{[%clk 0:02:35.9]} 19... Qa6 {[%clk 0:02:12.3]} 20. Rxc6 {[%clk 0:02:32.6]}
20... Qxc6 {[%clk 0:02:13.2]} 21. Qb2 {[%clk 0:02:31.2]} 21... Kg8 {[%clk
0:02:09.1]} 22. Rc1 {[%clk 0:02:30.2]} 22... Qd6 {[%clk 0:02:03.8]} 23. Nc5
{[%clk 0:02:28.5]} 23... b6 {[%clk 0:02:01.8]} 24. Nd3 {[%clk 0:02:24.2]} 24...
h5 {[%clk 0:01:57.1]} 25. Qd2 {[%clk 0:02:19.3]} 25... Ng4 {[%clk 0:01:54.2]}
26. h3 {[%clk 0:02:01.7]} 26... Ne3 {[%clk 0:01:34.4]} 27. Qb4 {[%clk
0:01:53.7]} 27... Qb8 {[%clk 0:01:16]} 28. Qf4 {[%clk 0:01:47.9]} 28... Nf5
{[%clk 0:01:00.9]} 29. Qxb8 {[%clk 0:01:45.8]} 29... Rxb8 {[%clk 0:01:01.8]} 30.
Rc7 {[%clk 0:01:45.3]} 30... Re8 {[%clk 0:00:56.4]} 31. e3 {[%clk 0:01:42.8]}
31... a5 {[%clk 0:00:50.1]} 32. Kf1 {[%clk 0:01:36.7]} 32... Re6 {[%clk
0:00:37.5]} 33. g4 {[%clk 0:01:28.1]} 33... hxg4 {[%clk 0:00:36.2]} 34. hxg4
{[%clk 0:01:29]} 34... Ne7 {[%clk 0:00:27.9]} 35. Nf4 {[%clk 0:01:20.6]} 35...
Re5 {[%clk 0:00:27.3]} 36. Ke2 {[%clk 0:01:20.3]} 36... Kf8 {[%clk 0:00:27.8]}
37. Rb7 {[%clk 0:01:18.4]} 37... b5 {[%clk 0:00:22.8]} 38. Nd3 {[%clk 0:01:18]}
38... Rd5 {[%clk 0:00:22.7]} 39. a3 {[%clk 0:01:13.1]} 39... Nc6 {[%clk
0:00:17.9]} 40. Rb6 {[%clk 0:01:11.1]} 40... Ne5 {[%clk 0:00:18]} 41. Nxe5
{[%clk 0:01:09.9]} 41... Rxe5 {[%clk 0:00:18.9]} 42. Ra6 {[%clk 0:01:09.1]}
42... b4 {[%clk 0:00:18]} 43. axb4 {[%clk 0:01:08.4]} 43... axb4 {[%clk
0:00:18.9]} 44. Rb6 {[%clk 0:01:08]} 44... Ke7 {[%clk 0:00:11.6]} 45. Rxb4
{[%clk 0:01:07.6]} 45... Kd6 {[%clk 0:00:12.3]} 46. Rd4+ {[%clk 0:01:06.2]}
46... Kc5 {[%clk 0:00:12.4]} 47. Kd3 {[%clk 0:01:06]} 47... f5 {[%clk
0:00:12.5]} 48. gxf5 {[%clk 0:01:04]} 48... Rxf5 {[%clk 0:00:12.8]} 49. f4
{[%clk 0:01:03.4]} 49... g5 {[%clk 0:00:13.5]} 50. Ke4 {[%clk 0:01:03.2]} 50...
Rf8 {[%clk 0:00:07.8]} 51. fxg5 {[%clk 0:01:03]} 51... Rf1 {[%clk 0:00:04.3]}
52. Rd5+ {[%clk 0:00:57.3]} 52... Kc6 {[%clk 0:00:04]} 53. Rf5 {[%clk
0:00:56.8]} 53... Rb1 {[%clk 0:00:03.2]} 54. Ke5 {[%clk 0:00:55.1]} 54... Rxb3
{[%clk 0:00:03.1]} 55. Kf6 {[%clk 0:00:55.4]} 55... Rxe3 {[%clk 0:00:03.4]} 56.
g6 {[%clk 0:00:55.9]} 56... Rg3 {[%clk 0:00:02.3]} 57. g7 {[%clk 0:00:55.9]}
57... Kd6 {[%clk 0:00:02.9]} 58. Rg5 {[%clk 0:00:55.2]} 58... Rf3+ {[%clk
0:00:02.5]} 59. Kg6 {[%clk 0:00:55.6]} 1-0